bitfinex/quotes_BTCUSD_20251224
["timestamp","ask_amount","ask_price","bid_price","bid_amount"]
[1766570609206,0.02159,86861.0,86848.0,0.01151436]
[1766570609207,0.02159,86859.0,86848.0,0.01151436]
[1766570609556,0.02159,86859.0,86849.0,0.01151423]
[1766570609765,0.02159,86859.0,86850.0,0.06908458]
[1766570610013,0.02159,86859.0,86850.0,0.0115141]
[1766570610218,0.02159,86859.0,86849.0,0.06908537]
[1766570610418,0.02159,86859.0,86850.0,0.0115141]
[1766570610616,0.02159,86859.0,86850.0,0.06908456]
[1766570610821,0.02159,86859.0,86851.0,0.01151397]
[1766570611415,0.02159,86859.0,86852.0,0.01151383]
[1766570612018,0.02159,86859.0,86851.0,0.06908375]
[1766570612437,0.02159,86859.0,86852.0,0.01151383]
[1766570612640,0.02159,86859.0,86850.0,0.06908421]
[1766570613183,0.02159,86859.0,86851.0,0.01151397]
[1766570613339,0.02159,86859.0,86850.0,0.0115141]
[1766570613532,0.02159,86859.0,86851.0,0.01151397]
[1766570613749,0.02159,86859.0,86852.0,0.01151383]
[1766570614159,0.02159,86859.0,86851.0,0.01151397]
[1766570614394,0.02159,86859.0,86850.0,0.06908396]
[1766570614678,0.02159,86859.0,86851.0,0.01151397]
[1766570614837,0.02159,86859.0,86850.0,0.0115141]
[1766570615517,0.02159,86859.0,86850.0,0.06908451]
[1766570615716,0.02159,86859.0,86852.0,0.01151383]
[1766570616318,0.01152,86861.0,86857.0,0.01151317]
[1766570616557,0.01152,86861.0,86859.0,0.000549]
[1766570616773,0.14970961,86867.0,86859.0,0.000549]
[1766570616774,0.01152,86864.0,86860.0,0.1224]
[1766570616981,0.13819551,86867.0,86860.0,0.1224]
[1766570617278,0.01152,86868.0,86860.0,0.1224]
[1766570617434,0.034569,86869.0,86862.0,0.1224]
[1766570617635,0.034569,86869.0,86863.0,0.13391238]
[1766570617841,0.01152,86870.0,86863.0,0.1224]
[1766570618040,0.01152,86870.0,86863.0,0.13391238]
[1766570618249,0.046089,86870.0,86863.0,0.13391238]
[1766570618507,0.046089,86870.0,86863.0,0.1224]
[1766570618985,0.046089,86870.0,86864.0,0.13391224]
[1766570619247,0.01152,86870.0,86865.0,0.01151211]
[1766570619444,0.01152,86870.0,86864.0,0.1224]
[1766570621275,0.00043813,86868.0,86864.0,0.1224]
[1766570626429,1.3e-07,86868.0,86865.0,0.05756031]
[1766570626594,1.3e-07,86868.0,86866.0,0.1224]
[1766570626991,1.3e-07,86868.0,86866.0,0.05755973]
[1766570627233,0.01152,86872.0,86864.0,0.01151224]
[1766570627234,0.01152,86872.0,86867.0,0.1224]
[1766570629650,0.01152,86876.0,86872.0,0.000111]
[1766570630132,0.01152,86876.0,86869.0,0.1224]
[1766570630347,0.01152,86876.0,86866.0,0.05755988]
[1766570630348,0.01152,86876.0,86866.0,0.01151198]
[1766570630567,0.12570079,86875.0,86863.0,0.13391238]
[1766570630743,0.10267,86872.0,86862.0,0.01152]
[1766570630949,0.00011,86868.0,86862.0,0.01152]
[1766570631145,0.10267,86867.0,86861.0,0.06907532]
[1766570631616,0.10267,86867.0,86862.0,0.01151251]
[1766570631958,0.00011,86868.0,86867.0,0.000549]
[1766570632365,0.00011,86868.0,86864.0,0.06907288]
[1766570632568,0.00011,86868.0,86863.0,0.01151238]
[1766570633312,0.00011,86868.0,86862.0,0.13391251]
[1766570633470,0.00011,86868.0,86863.0,0.01151238]
[1766570633795,0.00011,86868.0,86862.0,0.19147453]
[1766570633981,0.00011,86868.0,86862.0,0.13391251]
[1766570634574,0.00011,86868.0,86862.0,0.1224]
[1766570634738,0.00011,86868.0,86862.0,0.13391251]
[1766570634939,0.00011,86868.0,86861.0,0.01152]
[1766570635156,0.05755967,86867.0,86854.0,0.13391357]
[1766570635414,0.07964,86866.0,86856.0,0.0115133]
[1766570636807,0.07964,86866.0,86856.0,0.06907956]
[1766570637009,0.07964,86866.0,86856.0,0.0115133]
[1766570637174,0.07964,86866.0,86855.0,0.08060051]
[1766570637380,0.09116,86866.0,86856.0,0.0115133]
[1766570637576,0.07964,86865.0,86855.0,0.02303344]
[1766570638180,0.07964,86865.0,86855.0,0.01152]
[1766570638385,0.07964,86865.0,86855.0,0.02303344]
[1766570638884,0.07964,86865.0,86855.0,0.01152]
[1766570639090,0.13720074,86865.0,86855.0,0.01152]
[1766570639503,0.14871285,86865.0,86855.0,0.01152]
[1766570639703,0.01151224,86864.0,86855.0,0.01152]
[1766570639888,0.14871276,86865.0,86855.0,0.01152]
[1766570640143,0.01151224,86864.0,86855.0,0.01152]
[1766570640529,0.07964,86864.0,86855.0,0.01152]
[1766570641170,0.07964,86864.0,86855.0,0.02303344]
[1766570641350,0.07964,86864.0,86855.0,0.01152]
[1766570641977,0.07964,86864.0,86855.0,0.02303344]
[1766570644276,0.07964,86864.0,86855.0,0.01152]
[1766570644434,0.07964,86864.0,86855.0,0.02303344]
[1766570644644,0.07964,86864.0,86855.0,0.01152]
[1766570645044,0.09115224,86864.0,86855.0,0.01152]
[1766570645244,0.13819551,86863.0,86850.0,0.04608099]
[1766570645474,0.09115277,86860.0,86850.0,0.01152]
[1766570645672,0.07964,86856.0,86849.0,0.00035755]
[1766570646112,0.0911533,86856.0,86849.0,0.00035755]
[1766570646437,0.07964,86856.0,86849.0,0.00035755]
[1766570646827,0.0911533,86856.0,86849.0,0.00035755]
[1766570647129,0.07964,86856.0,86849.0,0.00035755]
[1766570650318,0.0911533,86856.0,86849.0,0.00035755]
[1766570650710,0.07964,86856.0,86849.0,0.00035755]
[1766570661910,0.0911533,86856.0,86849.0,0.00035755]
[1766570662114,0.01151357,86854.0,86846.0,0.01152]
[1766570662275,0.07964,86854.0,86846.0,0.01158]
[1766570662476,0.0115137,86853.0,86846.0,0.01158]
[1766570662694,0.07964,86853.0,86846.0,0.01158]
[1766570663574,0.07964,86853.0,86846.0,0.00052755]
[1766570663921,0.0911537,86853.0,86846.0,0.00052755]
[1766570664126,0.07964,86853.0,86846.0,0.00052755]
[1766570665195,0.07964,86853.0,86846.0,0.01204218]
[1766570665370,0.07964,86853.0,86847.0,0.0115145]
[1766570665371,0.079091,86853.0,86847.0,0.0115145]
[1766570665572,0.079091,86853.0,86846.0,0.06961531]
[1766570665779,0.079091,86853.0,86847.0,0.0115145]
[1766570665940,0.079091,86853.0,86848.0,0.01151436]
[1766570666142,0.079091,86853.0,86846.0,0.06914776]
[1766570666342,0.079091,86853.0,86846.0,6e-05]
[1766570666602,0.079091,86853.0,86846.0,0.01157463]
[1766570666764,0.07884198,86853.0,86846.0,6e-05]
[1766570667603,0.07884198,86853.0,86846.0,0.01157463]
[1766570667804,0.07884198,86853.0,86846.0,6e-05]
[1766570668161,0.07884198,86853.0,86846.0,0.01157463]
[1766570668400,0.07884198,86853.0,86846.0,0.06914778]
[1766570668819,0.07884198,86853.0,86846.0,0.01157463]
[1766570669140,0.07884198,86853.0,86846.0,6e-05]
[1766570670533,0.07884198,86853.0,86846.0,0.0691477]
[1766570670765,0.01152,86854.0,86847.0,0.0115145]
[1766570670895,0.01152,86854.0,86846.0,0.06914779]
[1766570671114,0.01152,86854.0,86846.0,0.06914771]
[1766570671625,0.01152,86854.0,86847.0,0.0115145]
[1766570671995,0.01152,86854.0,86846.0,0.06914747]
[1766570672195,0.01152,86854.0,86847.0,0.0115145]
[1766570672623,0.01152,86854.0,86847.0,0.06908694]
[1766570673035,0.01152,86854.0,86846.0,0.06914767]
[1766570673440,0.01152,86854.0,86847.0,0.0690868]
[1766570673683,0.04145964,86877.0,86846.0,0.06914767]
[1766570673684,0.03110359,86879.0,86867.0,0.01151185]
[1766570673881,0.143054,86877.0,86871.0,0.01151132]
[1766570674087,0.01152,86878.0,86869.0,0.12496158]
[1766570674305,0.145254,86877.0,86869.0,0.11345]
[1766570674504,0.102031,86877.0,86869.0,0.11345]
[1766570674708,0.102031,86877.0,86870.0,0.11345]
[1766570674915,0.102031,86877.0,86870.0,0.112901]
[1766570675567,0.102031,86877.0,86870.0,0.12441245]
[1766570675697,0.01152,86878.0,86873.0,0.01151105]
[1766570675898,0.142878,86877.0,86872.0,0.01151118]
[1766570676100,0.105511,86877.0,86871.0,0.06906776]
[1766570676322,0.01152,86878.0,86873.0,0.01151105]
[1766570676526,0.104411,86877.0,86873.0,0.01151105]
[1766570676703,0.104411,86877.0,86872.0,0.06906702]
[1766570676925,0.00035708,86877.0,86873.0,0.01151105]
[1766570677243,0.00011,86880.0,86873.0,0.01151105]
[1766570677244,0.00011,86880.0,86877.0,0.01186752]
[1766570677447,0.01152,86879.0,86877.0,6e-05]
[1766570677651,0.00011,86880.0,86879.0,0.0577433]
[1766570677859,0.00566078,86884.0,86881.0,0.06905933]
[1766570678077,0.04261133,86898.0,86884.0,0.01150959]
[1766570678326,0.08056768,86897.0,86884.0,0.12161]
[1766570678508,0.04033,86897.0,86886.0,0.01150933]
[1766570679123,0.04033,86897.0,86886.0,0.06905592]
[1766570679300,0.02881,86896.0,86886.0,0.01150933]
[1766570679482,0.205158,86895.0,86885.0,0.01150946]
[1766570679820,0.02881,86896.0,86886.0,0.01150933]
[1766570679979,0.01152,86894.0,86886.0,0.06905569]
[1766570680610,0.01152,86894.0,86886.0,0.01150933]
[1766570680788,0.01152,86894.0,86887.0,0.0115092]
[1766570680990,0.01152,86894.0,86888.0,0.01150906]
[1766570681188,0.01152,86893.0,86889.0,0.01150893]
[1766570682245,0.01152,86893.0,86890.0,0.0115088]
[1766570682459,0.01152,86893.0,86891.0,0.05754318]
[1766570683020,0.05753474,86906.0,86891.0,0.05754318]
[1766570683220,0.05753541,86903.0,86890.0,0.0115088]
[1766570683424,0.01150721,86902.0,86891.0,0.01150867]
[1766570684034,0.01150734,86901.0,86890.0,0.0115088]
[1766570684536,0.01150721,86902.0,86890.0,0.0115088]
[1766570684738,0.01150721,86902.0,86891.0,0.01150867]
[1766570684938,0.06904328,86902.0,86890.0,0.0115088]
[1766570685524,0.01150734,86901.0,86889.0,0.13311893]
[1766570685852,0.255861,86898.0,86884.0,0.06905698]
[1766570686030,0.00055,86889.0,86883.0,0.01152]
[1766570686178,0.06904885,86895.0,86883.0,0.01152]
[1766570686179,0.866717,86895.0,86883.0,0.01152]
[1766570686387,0.00011,86893.0,86884.0,0.06905753]
[1766570686766,0.00011,86893.0,86884.0,0.01150959]
[1766570687043,0.00011,86893.0,86883.0,0.08057838]
[1766570687186,0.00011,86893.0,86883.0,0.02302973]
[1766570687399,0.00011,86893.0,86884.0,0.01150959]
[1766570687603,0.00011,86893.0,86883.0,0.02302973]
[1766570687804,0.00011,86893.0,86884.0,0.01150959]
[1766570688205,0.00011,86893.0,86884.0,0.06905721]
[1766570688634,0.00011,86893.0,86885.0,0.01150946]
[1766570689467,0.00011,86893.0,86883.0,0.08057787]
[1766570689842,0.00011,86893.0,86884.0,0.01150959]
[1766570690047,0.00011,86893.0,86883.0,0.08057831]
[1766570690264,0.00011,86893.0,86883.0,0.02302973]
[1766570690446,0.00011,86893.0,86883.0,0.01152]
[1766570690645,0.00011,86893.0,86883.0,0.02302973]
[1766570690861,0.00011,86893.0,86883.0,0.08057831]
[1766570691069,0.00011,86893.0,86883.0,0.02302973]
[1766570691267,0.00011,86893.0,86883.0,0.08057835]
[1766570691462,0.00011,86893.0,86884.0,0.01150959]
[1766570692427,0.00011,86893.0,86883.0,0.01152]
[1766570692643,0.0116184,86893.0,86883.0,0.01152]
[1766570692898,0.00055,86883.0,86878.0,0.01152]
[1766570693101,0.00055,86883.0,86875.0,0.01151079]
[1766570693250,0.0230292,86887.0,86875.0,0.0805846]
[1766570693457,0.01150946,86885.0,86875.0,0.01152]
[1766570693658,0.08057548,86887.0,86875.0,0.0805847]
[1766570693867,0.01152,86887.0,86876.0,0.05755321]
[1766570694073,0.01152,86887.0,86875.0,0.0805847]
[1766570694074,0.0230292,86887.0,86875.0,0.0805847]
[1766570694630,0.08057556,86887.0,86875.0,0.08058471]
[1766570694804,0.01152,86887.0,86878.0,0.01151039]
[1766570695377,0.01152,86887.0,86877.0,0.06906262]
[1766570695989,0.00440733,86887.0,86878.0,0.06906186]
[1766570696205,0.00440733,86887.0,86879.0,0.01151026]
[1766570696414,0.00440733,86887.0,86878.0,0.06887281]
[1766570696616,0.00440733,86887.0,86879.0,0.01151026]
[1766570697246,0.00440733,86887.0,86879.0,0.06906137]
[1766570697837,0.00440733,86887.0,86881.0,0.05754998]
[1766570698061,0.00440733,86887.0,86882.0,0.01150986]
[1766570698436,0.00440733,86887.0,86881.0,0.01150999]
[1766570699207,0.00440733,86887.0,86881.0,0.06905972]
[1766570699404,0.00440733,86887.0,86881.0,0.01150999]
[1766570699917,0.00440733,86887.0,86880.0,0.06906072]
[1766570700120,0.00440733,86887.0,86881.0,0.01150999]
[1766570700303,0.00440733,86887.0,86880.0,0.06906072]
[1766570700727,0.00440733,86887.0,86880.0,0.01151012]
[1766570701934,0.00440733,86887.0,86880.0,0.06906065]
[1766570702334,0.00440733,86887.0,86879.0,0.06906033]
[1766570702583,0.00440733,86887.0,86880.0,0.01151012]
[1766570702771,0.00440733,86887.0,86879.0,0.06906033]
[1766570702972,0.00440733,86887.0,86880.0,0.01151012]
[1766570703289,0.00440733,86887.0,86881.0,0.01150999]
[1766570703514,0.00440733,86887.0,86882.0,0.01150986]
[1766570703655,0.00440733,86887.0,86881.0,0.01150999]
[1766570704148,0.00440733,86887.0,86880.0,0.06906027]
[1766570704350,0.00440733,86887.0,86882.0,0.05754886]
[1766570704668,0.00440733,86887.0,86883.0,0.01150973]
[1766570705592,0.00440733,86887.0,86883.0,0.06905831]
[1766570705971,0.00440733,86887.0,86884.0,0.01150959]
[1766570707115,0.00440733,86887.0,86883.0,0.06905831]
[1766570707251,0.00440733,86887.0,86883.0,0.06905812]
[1766570707650,0.00440733,86887.0,86884.0,0.06905728]
[1766570708122,0.00440733,86887.0,86884.0,0.01150959]
[1766570709102,0.00055,86884.0,86880.0,0.10420815]
[1766570709312,0.00055,86884.0,86873.0,0.01162105]
[1766570709493,0.01150933,86886.0,86874.0,0.01151092]
[1766570709732,0.06905617,86886.0,86874.0,0.01151092]
[1766570710004,0.09389627,86886.0,86874.0,0.01151092]
[1766570710250,0.06905689,86885.0,86873.0,0.06917579]
[1766570710470,0.09389699,86885.0,86874.0,0.01151092]
[1766570710873,0.0248401,86885.0,86874.0,0.06906544]
[1766570711272,0.01151012,86880.0,86873.0,0.00011]
[1766570711518,0.01150959,86884.0,86862.0,0.01151251]
[1766570711519,0.00055,86875.0,86862.0,0.01151251]
[1766570711757,0.00055,86875.0,86865.0,0.01151211]
[1766570711973,0.05810444,86875.0,86863.0,0.05756188]
[1766570712185,0.05755444,86875.0,86863.0,0.05756188]
[1766570712387,0.01151079,86875.0,86864.0,0.01151224]
[1766570712606,0.06907174,86879.0,86866.0,0.05755986]
[1766570712827,0.01151039,86878.0,86867.0,0.01151185]
[1766570713038,0.080582,86879.0,86867.0,0.01151185]
[1766570713251,0.01152,86879.0,86871.0,0.01151132]
[1766570713452,0.01152,86879.0,86868.0,0.1185]
[1766570713656,0.01152,86879.0,86869.0,0.06906903]
[1766570714630,0.01152,86879.0,86869.0,0.01151158]
[1766570715037,0.01152,86879.0,86870.0,0.01151145]
[1766570715239,0.01152,86879.0,86871.0,0.01151132]
[1766570715464,0.03647926,86882.0,86870.0,0.01151145]
[1766570715465,1.007495,86881.0,86870.0,0.01151145]
[1766570715673,0.01152,86878.0,86871.0,0.06906766]
[1766570716081,0.01152,86878.0,86871.0,0.01151132]
[1766570716333,0.02495852,86882.0,86873.0,0.01151105]
[1766570716508,0.02495852,86882.0,86872.0,0.01151118]
[1766570716509,0.01152,86877.0,86872.0,0.01151118]
[1766570716716,0.01152,86877.0,86873.0,0.01151105]
[1766570717899,0.01152,86877.0,86873.0,0.06906579]
[1766570718311,0.01152,86877.0,86874.0,0.01151092]
[1766570719215,0.01152,86877.0,86874.0,0.06906546]
[1766570719567,0.01152,86877.0,86875.0,0.01151079]
[1766570719767,0.01152,86877.0,86874.0,0.01151092]
[1766570720155,0.01152,86877.0,86874.0,0.06906516]
[1766570721088,0.00011,86882.0,86874.0,0.06906516]
[1766570721287,0.01152,86881.0,86874.0,0.06906516]
[1766570721739,0.01152,86881.0,86875.0,0.01151079]
[1766570722549,0.01152,86880.0,86877.0,0.01151052]
[1766570722784,0.01152,86880.0,86876.0,0.06906348]
[1766570722958,0.255159,86881.0,86876.0,0.06906348]
[1766570723189,0.02495334,86882.0,86876.0,0.06906348]
[1766570723190,0.01152,86879.0,86877.0,0.05755251]
[1766570723393,0.00011,86882.0,86881.0,0.000549]
[1766570723602,0.01163,86882.0,86877.0,0.01151052]
[1766570723966,0.01163,86882.0,86878.0,0.01151039]
[1766570724387,0.01163,86882.0,86877.0,0.01151052]
[1766570724561,0.01163,86882.0,86875.0,0.06906473]
[1766570724562,0.01163,86882.0,86875.0,0.01151079]
[1766570724912,0.01163,86882.0,86876.0,0.01151065]
[1766570725127,0.01163,86882.0,86875.0,0.13001079]
[1766570725518,0.01163,86882.0,86877.0,0.01151052]
[1766570725938,0.01163,86882.0,86878.0,0.01151039]
[1766570726532,0.01163,86882.0,86878.0,0.06906225]
[1766570726734,0.01163,86882.0,86879.0,0.06906102]
[1766570726934,0.01163,86882.0,86881.0,0.05754998]
[1766570729823,0.04604,86891.0,86885.0,0.01150946]
[1766570730126,0.01152,86890.0,86885.0,0.01095946]
[1766570730340,0.01152,86890.0,86887.0,0.0115092]
[1766570730474,0.117937,86889.0,86886.0,0.01150933]
[1766570730696,0.02484304,86888.0,86885.0,0.0685066]
[1766570730932,0.47269,86889.0,86886.0,0.01150933]
[1766570731132,0.02484304,86888.0,86885.0,0.0685066]
[1766570731350,0.34799,86889.0,86885.0,0.0685066]
[1766570731692,0.02484304,86888.0,86884.0,0.06905705]
[1766570731883,0.4492,86889.0,86883.0,0.06905727]
[1766570732084,0.34126804,86888.0,86885.0,0.01150946]
[1766570732286,0.02484304,86887.0,86885.0,0.01150946]
[1766570732492,0.618888,86889.0,86882.0,0.06905903]
[1766570732688,0.02484304,86888.0,86882.0,0.06905903]
[1766570732848,0.64766,86889.0,86882.0,0.01150986]
[1766570733048,0.02484304,86888.0,86881.0,0.06905988]
[1766570733252,0.64766,86889.0,86881.0,0.06905988]
[1766570733497,0.02484304,86888.0,86881.0,0.01150999]
[1766570733701,1.422583,86889.0,86878.0,0.01151039]
[1766570733875,0.02484304,86888.0,86873.0,0.01151105]
[1766570734071,0.01150906,86888.0,86873.0,0.01151105]
[1766570734281,0.09389675,86889.0,86877.0,0.01151052]
[1766570734522,1.146249,86888.0,86876.0,0.05754497]
[1766570734718,0.02484304,86887.0,86877.0,0.01151052]
[1766570734925,0.01150959,86884.0,86877.0,5.2e-07]
[1766570735128,0.06906051,86881.0,86877.0,5.2e-07]
[1766570735282,0.02484304,86881.0,86877.0,5.2e-07]
[1766570735493,0.02302973,86883.0,86877.0,5.2e-07]
[1766570735697,0.08057885,86883.0,86877.0,5.2e-07]
[1766570735904,0.02302973,86883.0,86877.0,5.2e-07]
[1766570736156,0.08057864,86883.0,86877.0,5.2e-07]
[1766570736346,0.01150986,86882.0,86877.0,5.2e-07]
[1766570736724,0.10542168,86883.0,86877.0,5.2e-07]
[1766570736924,0.01150986,86882.0,86877.0,5.2e-07]
[1766570737129,0.0363529,86882.0,86877.0,5.2e-07]
[1766570737581,0.02484304,86882.0,86877.0,5.2e-07]
[1766570737774,0.0363529,86882.0,86877.0,5.2e-07]
[1766570737898,0.02484304,86882.0,86877.0,5.2e-07]
[1766570738585,0.0363529,86882.0,86877.0,5.2e-07]
[1766570738945,0.02484304,86882.0,86877.0,5.2e-07]
[1766570739486,0.0363529,86882.0,86877.0,5.2e-07]
[1766570739624,0.09390241,86882.0,86877.0,5.2e-07]
[1766570740642,0.02484304,86882.0,86877.0,5.2e-07]
[1766570743467,0.02484304,86882.0,86877.0,0.01151104]
[1766570743676,0.01307214,86882.0,86877.0,5.2e-07]
[1766570743884,0.01152,86888.0,86877.0,5.2e-07]
[1766570744091,0.444512,86886.0,86879.0,1.17e-06]
[1766570744266,0.01079599,86887.0,86879.0,1.17e-06]
[1766570744267,0.435747,86887.0,86880.0,0.01151012]
[1766570744677,0.000549,86880.0,86876.0,0.00823451]
[1766570744872,0.01152,86879.0,86875.0,0.06906413]
[1766570745056,0.01152,86879.0,86867.0,0.12444]
[1766570745259,0.01152,86879.0,86872.0,0.01151118]
[1766570745881,0.01152,86879.0,86873.0,0.01151105]
[1766570746256,0.01152,86879.0,86874.0,0.01151092]
[1766570746477,0.01152,86879.0,86872.0,0.01151118]
[1766570746705,0.01152,86879.0,86872.0,0.06906703]
[1766570746904,0.01152,86879.0,86872.0,0.06906654]
[1766570747082,0.01152,86879.0,86873.0,0.01151105]
[1766570747316,0.01152,86879.0,86874.0,0.06906545]
[1766570747508,0.01152,86879.0,86875.0,0.01151079]
[1766570747708,0.01152,86879.0,86874.0,0.01151092]
[1766570748049,0.01152,86879.0,86875.0,0.01151079]
[1766570748755,0.01152,86879.0,86876.0,0.01151065]
[1766570749380,0.01152,86879.0,86875.0,0.01151079]
[1766570749715,0.01152,86879.0,86876.0,0.01151065]
[1766570750234,0.01152,86879.0,86876.0,0.06906374]
[1766570750992,0.01152,86879.0,86876.0,0.01151065]
[1766570751142,0.01097,86879.0,86877.0,0.05755256]
[1766570751671,0.01152,86881.0,86878.0,0.01151039]
[1766570752075,0.01152,86881.0,86880.0,0.05755064]
[1766570752231,0.00343618,86881.0,86880.0,0.05755064]
[1766570752434,0.00243827,86881.0,86878.0,0.06906232]
[1766570752640,0.00243827,86881.0,86878.0,0.06906199]
[1766570753443,0.00243827,86881.0,86879.0,0.05755106]
[1766570753646,0.000549,86879.0,86877.0,5.2e-07]
[1766570754236,0.00243827,86881.0,86877.0,5.2e-07]
[1766570755870,0.00243827,86881.0,86872.0,0.01151118]
[1766570756082,0.00243827,86881.0,86874.0,0.05755407]
[1766570756280,0.00243827,86881.0,86876.0,0.01151065]
[1766570756439,0.00243827,86881.0,86875.0,0.06906468]
[1766570756809,0.00243827,86881.0,86873.0,0.06906581]
[1766570757023,0.00243827,86881.0,86874.0,0.01151092]
[1766570757787,0.00243827,86881.0,86870.0,0.01151145]
[1766570758159,0.00243827,86881.0,86872.0,0.05755567]
[1766570758364,0.00243827,86881.0,86874.0,0.01151092]
[1766570759165,0.00243827,86881.0,86873.0,0.06906579]
[1766570759358,0.00243827,86881.0,86873.0,0.01151105]
[1766570759571,0.00243827,86881.0,86868.0,0.01151171]
[1766570759787,0.00243827,86881.0,86869.0,0.01151158]
[1766570759984,0.00243827,86881.0,86865.0,0.24175239]
[1766570760189,0.00243827,86881.0,86869.0,0.05755753]
[1766570760645,0.00243827,86881.0,86870.0,0.06906857]
[1766570760859,0.00243827,86881.0,86870.0,0.01151145]
[1766570761520,0.00243827,86881.0,86873.0,0.01151105]
[1766570761694,0.00243827,86881.0,86874.0,0.01151092]
[1766570761910,0.00243827,86881.0,86873.0,0.01151105]
[1766570762433,0.00243827,86881.0,86874.0,0.01151092]
[1766570762633,0.00243827,86881.0,86873.0,0.01151105]
[1766570762935,0.00243827,86881.0,86874.0,0.01151092]
[1766570763865,0.00243827,86881.0,86874.0,0.06906532]
[1766570764068,0.00243827,86881.0,86874.0,0.01151092]
[1766570764278,0.02487694,86882.0,86879.0,0.12811026]
[1766570764475,0.01152,86885.0,86879.0,0.12811026]
[1766570764722,0.01152,86885.0,86879.0,0.01151026]
[1766570764918,0.01152,86885.0,86878.0,0.06906219]
[1766570765274,0.01152,86885.0,86878.0,0.01151039]
[1766570765471,0.01152,86885.0,86879.0,0.01151026]
[1766570765892,0.01152,86885.0,86880.0,0.01151012]
[1766570768078,0.01152,86885.0,86879.0,0.0690613]
[1766570768253,0.01152,86885.0,86880.0,0.01151012]
[1766570768675,0.01152,86885.0,86879.0,0.01151026]
[1766570770537,0.01152,86885.0,86880.0,0.01151012]
[1766570771138,0.01152,86885.0,86879.0,0.06906137]
[1766570771512,0.01152,86885.0,86880.0,0.01151012]
[1766570772316,0.01152,86885.0,86881.0,0.01150999]
[1766570772515,0.01152,86885.0,86880.0,0.06906076]
[1766570772711,0.01152,86885.0,86881.0,0.01150999]
[1766570772964,0.01152,86885.0,86880.0,0.06906076]
[1766570773990,0.01152,86885.0,86881.0,0.01150999]
[1766570774522,0.01152,86885.0,86880.0,0.06906076]
[1766570774747,0.01152,86885.0,86881.0,0.06905972]
[1766570774978,0.01152,86885.0,86881.0,0.01150999]
[1766570775543,0.01152,86885.0,86882.0,0.01150986]
[1766570775772,0.01152,86885.0,86881.0,0.06905948]
[1766570776130,0.01152,86885.0,86881.0,0.01150999]
[1766570776530,0.01152,86885.0,86880.0,0.01151012]
[1766570776788,0.01152,86885.0,86881.0,0.01150999]
[1766570778042,0.01152,86885.0,86879.0,0.06906042]
[1766570778524,0.01152,86885.0,86880.0,0.01151012]
[1766570778728,0.01152,86885.0,86880.0,0.06906052]
[1766570778925,0.01152,86885.0,86881.0,0.01150999]
[1766570779309,0.01152,86885.0,86880.0,0.06906052]
[1766570780222,0.01152,86885.0,86881.0,0.01150999]
[1766570780607,0.01152,86885.0,86880.0,0.06906052]
[1766570780806,0.01152,86885.0,86881.0,0.01150999]
[1766570781132,0.01152,86885.0,86880.0,0.06906052]
[1766570781740,0.01152,86885.0,86881.0,0.06905992]
[1766570782069,0.01152,86885.0,86882.0,0.05754928]
[1766570782624,0.01152,86885.0,86882.0,0.06905914]
[1766570783036,0.01152,86885.0,86882.0,0.01150986]
[1766570783461,0.01152,86885.0,86882.0,0.06905916]
[1766570784541,0.01152,86884.0,86882.0,0.01150986]
[1766570784781,0.01161037,86884.0,86882.0,0.06905917]
[1766570784992,9.037e-05,86884.0,86882.0,0.06905917]
[1766570785303,9.037e-05,86884.0,86883.0,0.05754865]
[1766570788513,9.037e-05,86884.0,86882.0,0.06905917]
[1766570788718,9.037e-05,86884.0,86883.0,0.05754865]
[1766570789863,0.0118872,86899.0,86892.0,0.01150853]
[1766570790059,0.001099,86892.0,86889.0,0.01150893]
[1766570790285,0.001099,86892.0,86887.0,0.0115092]
[1766570790565,0.753394,86896.0,86887.0,0.0115092]
[1766570791441,0.753394,86896.0,86889.0,0.01150893]
[1766570791649,0.739593,86896.0,86889.0,0.06905352]
[1766570791801,0.700937,86896.0,86889.0,0.06905352]
[1766570792168,0.700937,86896.0,86889.0,0.01150893]
[1766570792366,0.700937,86896.0,86890.0,0.0115088]
[1766570792509,0.700937,86896.0,86891.0,0.01150867]
[1766570792708,0.700937,86896.0,86891.0,0.01095967]
[1766570792914,0.700937,86896.0,86885.0,0.01150946]
[1766570793234,0.700937,86896.0,86886.0,0.01150933]
[1766570793857,0.700937,86896.0,86886.0,0.0690559]
[1766570794055,0.700937,86896.0,86887.0,0.0115092]
[1766570794378,0.700937,86896.0,86886.0,0.0690559]
[1766570794579,0.613373,86897.0,86887.0,0.0115092]
[1766570794784,0.613373,86897.0,86890.0,0.0115088]
[1766570795220,0.613373,86897.0,86889.0,0.06905352]
[1766570795757,0.613373,86897.0,86890.0,0.0115088]
[1766570796399,0.613373,86897.0,86888.0,0.0690541]
[1766570796400,0.613373,86897.0,86887.0,0.06905511]
[1766570796593,0.00055,86890.0,86885.0,0.18930675]
[1766570796723,0.00055,86890.0,86885.0,0.13175946]
[1766570796922,0.00055,86890.0,86885.0,0.12025]
[1766570797125,0.01152,86892.0,86885.0,0.12025]
[1766570797958,0.01152,86892.0,86885.0,0.13175946]
[1766570798161,0.01152,86892.0,86886.0,0.01150933]
[1766570798792,0.01152,86892.0,86887.0,0.0115092]
[1766570798987,0.01152,86892.0,86886.0,0.01150933]
[1766570799564,0.01152,86892.0,86886.0,0.06905596]
[1766570800489,0.01152,86892.0,86886.0,0.01150933]
[1766570801074,0.01152,86892.0,86885.0,0.13175946]
[1766570801864,0.01152,86892.0,86885.0,0.18930674]
[1766570802093,0.01152,86892.0,86886.0,0.0690559]
[1766570802496,0.01152,86892.0,86886.0,0.01150933]
[1766570802698,0.01152,86892.0,86885.0,0.13175946]
[1766570803823,0.01152,86892.0,86886.0,0.01150933]
[1766570805889,0.01152,86892.0,86886.0,0.0690558]
[1766570806089,0.01152,86892.0,86886.0,0.06905596]
[1766570806902,0.01152,86892.0,86886.0,0.01150933]
[1766570807720,0.01152,86892.0,86886.0,0.06905594]
[1766570807922,0.01152,86892.0,86887.0,0.0115092]
[1766570808673,0.01152,86892.0,86886.0,0.06905594]
[1766570808874,0.01152,86892.0,86888.0,0.01150906]
[1766570809053,0.01152,86892.0,86887.0,0.0115092]
[1766570809612,0.01152,86892.0,86888.0,0.01150906]
[1766570809818,0.01152,86892.0,86886.0,0.06905594]
[1766570810141,0.01152,86892.0,86887.0,0.06905509]
[1766570810770,0.01152,86892.0,86888.0,0.01150906]
[1766570811603,0.01152,86892.0,86887.0,0.06905509]
[1766570811758,0.01152,86892.0,86887.0,0.0115092]
[1766570812588,0.01152,86892.0,86888.0,0.01150906]
[1766570812979,0.01152,86892.0,86887.0,0.06905508]